bitfinex/quotes_SOLUSD_20220218
["timestamp","ask_amount","ask_price","bid_price","bid_amount"]
[1645188168236,30.82272557,94.268,94.182,2.6293831]
[1645188168435,11.34142557,94.267,94.182,2.6293831]
[1645188168635,5.306,94.267,94.182,2.6293831]
[1645188168839,6.03547063,94.266,94.182,2.6293831]
[1645188169037,5.306,94.265,94.182,2.6293831]
[1645188169240,6.03547063,94.264,94.182,2.6293831]
[1645188169437,15.9282,94.26,94.19,15.9273]
[1645188169637,5.306,94.259,94.191,47.4615578]
[1645188171241,6.03566779,94.258,94.191,47.4615578]
[1645188172139,5.306,94.259,94.191,47.4615578]
[1645188172741,5.306,94.259,94.2,15.927]
[1645188175241,15.9282,94.26,94.2,15.927]
[1645188182465,15.9282,94.26,94.192,23.1741]
[1645188182669,5.306,94.259,94.192,23.1741]
[1645188182869,15.9304,94.25,94.191,47.4615578]
[1645188183270,6.03637894,94.249,94.191,47.4615578]
[1645188183470,5.306,94.248,94.191,47.4615578]
[1645188183769,6.03637894,94.247,94.191,47.4615578]
[1645188183971,5.306,94.246,94.191,47.4615578]
[1645188184170,6.03637894,94.245,94.191,47.4615578]
[1645188184371,15.932,94.24,94.191,47.4615578]
[1645188184571,5.306,94.239,94.191,47.4615578]
[1645188185976,15.932,94.24,94.191,47.4615578]
[1645188188677,15.932,94.24,94.02,299.340187]
[1645188188678,111.106,94.239,94.15,15.9339]
[1645188188879,15.9349,94.22,94.15,15.9339]
[1645188189074,29.0073,94.219,94.131,23.1538]
[1645188189278,6.03754461,94.218,94.131,23.1538]
[1645188189476,5.309,94.217,94.131,23.1538]
[1645188189698,5.309,94.217,94.132,49.76906501]
[1645188189877,15.9375,94.2,94.132,49.76906501]
[1645188190077,24.6688,94.199,94.132,49.76906501]
[1645188190878,24.6688,94.199,94.132,47.13968191]
[1645188190879,15.9389,94.19,94.132,47.13968191]
[1645188191085,5.309,94.189,94.132,47.13968191]
[1645188192282,15.9389,94.19,94.132,47.13968191]
[1645188196990,15.9389,94.19,94.134,0.84406381]
[1645188197190,5.309,94.189,94.134,0.84406381]
[1645188197590,15.9409,94.18,94.134,0.84406381]
[1645188198197,105.8,94.179,94.134,0.84406381]
[1645188198392,5.309,94.178,94.134,0.84406381]
[1645188199194,5.309,94.179,94.134,0.84406381]
[1645188199493,15.9434,94.17,94.134,0.84406381]
[1645188199693,5.309,94.169,94.134,0.84406381]
[1645188201396,15.9459,94.16,94.134,0.84406381]
[1645188201596,5.309,94.159,94.134,0.84406381]
[1645188201796,5.309,94.159,94.132,47.98346211]
[1645188202006,5.309,94.169,94.132,47.98346211]
[1645188203400,15.9454,94.16,94.132,47.98346211]
[1645188203598,5.309,94.159,94.132,47.98346211]
[1645188204005,5.309,94.169,94.132,47.98346211]
[1645188204606,15.946,94.15,94.132,47.98346211]
[1645188206929,15.946,94.15,94.134,0.84406381]
[1645188209731,5.309,94.169,94.134,0.84406381]
[1645188209927,5.309,94.177,94.134,0.84406381]
[1645188210127,22.644,94.178,94.134,0.84406381]
[1645188210731,15.943,94.17,94.134,0.84406381]
[1645188210927,5.309,94.169,94.134,0.84406381]
[1645188211328,5.309,94.177,94.134,0.84406381]
[1645188211727,5.309,94.177,94.132,47.13968191]
[1645188212331,15.9447,94.16,94.132,47.13968191]
[1645188212530,5.309,94.159,94.132,47.13968191]
[1645188214529,15.9447,94.16,94.132,47.13968191]
[1645188214729,5.309,94.159,94.132,47.13968191]
[1645188215332,5.31,94.177,94.132,47.13968191]
[1645188217935,22.644,94.178,94.132,47.13968191]
[1645188221238,5.309,94.177,94.132,47.13968191]
[1645188221641,5.309,94.177,94.134,0.84406381]
[1645188221942,22.644,94.178,94.134,0.84406381]
[1645188222141,5.309,94.177,94.134,0.84406381]
[1645188223543,22.644,94.178,94.134,0.84406381]
[1645188226849,22.644,94.178,94.132,47.98346211]
[1645188228052,15.9429,94.17,94.132,47.98346211]
[1645188229255,5.309,94.177,94.132,47.98346211]
[1645188230153,15.9412,94.18,94.132,47.98346211]
[1645188230366,5.309,94.179,94.132,47.98346211]
[1645188231555,5.309,94.179,94.134,0.84406381]
[1645188233882,15.9412,94.18,94.134,0.84406381]
[1645188236888,15.9412,94.18,94.132,47.98346211]
[1645188237086,1.50703758,94.167,94.132,47.98346211]
[1645188237887,1.50703758,94.166,94.132,47.98346211]
[1645188238792,1.50703758,94.165,94.132,47.98346211]
[1645188238989,1.50703758,94.162,94.132,47.98346211]
[1645188239188,1.50703758,94.15,94.132,47.98346211]
[1645188239391,1.50703758,94.149,94.132,47.98346211]
[1645188239590,1.50703758,94.153,94.132,47.98346211]
[1645188239992,1.50703758,94.155,94.132,47.98346211]
[1645188240288,15.941,94.18,94.132,47.98346211]
[1645188240289,1.50703758,94.157,94.132,47.98346211]
[1645188240491,1.50703758,94.158,94.132,47.98346211]
[1645188240691,1.50703758,94.159,94.132,47.98346211]
[1645188241292,5.309,94.178,94.132,47.98346211]
[1645188241494,1.5080136,94.166,94.132,47.98346211]
[1645188241692,1.5080136,94.166,94.132,47.13968191]
[1645188242097,1.5080136,94.17,94.132,47.13968191]
[1645188243695,1.5080136,94.17,94.132,63.36618191]
[1645188243896,1.5080136,94.171,94.132,63.36618191]
[1645188244798,5.309,94.196,94.141,105.8]
[1645188245098,2.97599779,94.208,94.143,105.8]
[1645188245298,6.0381401,94.208,94.143,105.8]
[1645188245697,2.97599779,94.222,94.144,2.6293831]
[1645188245898,11.34587787,94.221,94.144,2.6293831]
[1645188246298,21.97217787,94.22,94.15,15.9352]
[1645188246499,5.308,94.219,94.153,105.8]
[1645188246700,5.308,94.219,94.154,130.456]
[1645188246701,6.03787787,94.218,94.154,130.456]
[1645188246901,15.9343,94.22,94.154,130.456]
[1645188247105,6.03785198,94.219,94.154,130.456]
[1645188247300,15.9343,94.22,94.16,15.9333]
[1645188248501,5.308,94.227,94.161,105.8]
[1645188248703,2.97599779,94.237,94.171,105.8]
[1645188248902,2.97599779,94.24,94.173,105.8]
[1645188249102,2.97599779,94.241,94.173,105.8]
[1645188249301,2.97599779,94.241,94.172,23.1054]
[1645188249302,2.97599779,94.241,94.174,159.61980387]
[1645188249603,5.307,94.24,94.174,159.61980387]
[1645188249801,6.03728426,94.24,94.174,159.61980387]
[1645188250004,6.03728426,94.242,94.174,159.61980387]
[1645188250204,5.307,94.241,94.174,53.81980387]
[1645188250404,21.96838426,94.24,94.18,15.9302]
[1645188250604,6.03728426,94.239,94.18,15.9302]
[1645188251204,22.7055,94.238,94.174,53.81980387]
[1645188251404,5.307,94.237,94.174,53.81980387]
[1645188256809,5.307,94.237,94.176,0.83811041]
[1645188258611,15.9332,94.23,94.176,0.83811041]
[1645188261736,15.9332,94.23,94.174,54.65763092]
[1645188266745,15.9332,94.23,94.176,0.83811041]
[1645188268846,6.0372209,94.229,94.176,0.83811041]
[1645188269248,15.9332,94.23,94.176,0.83811041]
[1645188270448,5.307,94.237,94.176,0.83811041]
[1645188270647,22.7055,94.238,94.176,0.83811041]
[1645188270849,6.03679905,94.237,94.176,0.83811041]
[1645188271150,6.03679905,94.237,94.18,15.9303]
[1645188271350,6.03679905,94.237,94.181,105.8]
[1645188271549,2.97599779,94.253,94.181,105.8]
[1645188271750,2.97599779,94.259,94.183,105.8]
[1645188271948,2.97599779,94.269,94.183,105.8]
[1645188272147,2.97599779,94.272,94.184,2.6293831]
[1645188272348,2.97599779,94.274,94.186,105.8]
[1645188272746,2.97599779,94.274,94.187,2.6293831]
[1645188272950,2.97599779,94.274,94.191,105.8]
[1645188273148,5.306,94.273,94.193,105.8]
[1645188273350,2.97599779,94.269,94.193,105.8]
[1645188273848,2.97599779,94.268,94.194,2.6293831]
[1645188274450,8.28199779,94.269,94.21,15.9241]
[1645188274651,6.03479571,94.268,94.211,24.4429]
[1645188275050,2.97599779,94.268,94.211,24.4429]
[1645188275351,2.97599779,94.268,94.212,48.67900955]
[1645188275555,5.305,94.267,94.212,48.67900955]
[1645188275752,2.97599779,94.265,94.212,48.67900955]
[1645188275956,5.305,94.264,94.212,48.67900955]
[1645188276155,6.03479571,94.263,94.212,48.67900955]
[1645188276553,6.03479571,94.264,94.212,48.67900955]
[1645188277354,6.03479571,94.265,94.212,48.67900955]
[1645188277555,6.03479571,94.263,94.212,48.67900955]
[1645188277754,6.03479571,94.264,94.212,48.67900955]
[1645188277953,6.03479571,94.265,94.212,48.67900955]
[1645188279755,24.4808,94.266,94.212,48.67900955]
[1645188280859,6.03527562,94.265,94.212,48.67900955]
[1645188281061,5.305,94.264,94.212,48.67900955]
[1645188281261,6.03527562,94.263,94.212,48.67900955]
[1645188281463,5.305,94.262,94.212,48.67900955]
[1645188281664,7.86181096,94.262,94.214,0.83272857]
[1645188282061,2.97599779,94.256,94.214,0.83272857]
[1645188282262,8.28099779,94.255,94.214,0.83272857]
[1645188282461,9.01127341,94.254,94.214,0.83272857]
[1645188282661,30.1893,94.253,94.214,0.83272857]
[1645188283062,6.03527562,94.252,94.214,0.83272857]
[1645188283270,5.305,94.251,94.214,0.83272857]
[1645188283462,15.9317,94.25,94.214,0.83272857]
[1645188283662,5.306,94.249,94.214,0.83272857]
[1645188283864,11.34127562,94.249,94.214,0.83272857]
[1645188284267,6.03527562,94.248,94.214,0.83272857]
[1645188284466,5.306,94.247,94.214,0.83272857]
[1645188284665,6.03527562,94.246,94.214,0.83272857]
[1645188284864,5.306,94.245,94.214,0.83272857]
[1645188285065,6.03527562,94.244,94.214,0.83272857]
[1645188285265,5.306,94.243,94.214,0.83272857]
[1645188285463,15.932,94.24,94.214,0.83272857]
[1645188285664,5.306,94.239,94.214,0.83272857]
[1645188286163,5.306,94.241,94.214,0.83272857]
[1645188286563,6.03714485,94.24,94.214,0.83272857]
[1645188286764,5.306,94.239,94.19,46.0029456]
[1645188286966,54.13550436,94.238,94.19,46.0029456]
[1645188287264,15.9332,94.23,94.19,0.83244544]
[1645188287466,5.307,94.229,94.19,0.83244544]
[1645188287666,15.24,94.23,94.19,0.83244544]
[1645188287966,5.307,94.229,94.19,0.83244544]
[1645188288168,28.4704,94.229,94.19,0.83244544]
[1645188288366,15.9353,94.22,94.19,0.83244544]
[1645188288569,5.307,94.219,94.19,0.83244544]
[1645188289367,15.9381,94.21,94.19,0.83244544]
[1645188289575,5.307,94.209,94.19,0.83244544]
[1645188289869,5.307,94.219,94.19,0.83244544]
[1645188290370,105.8,94.218,94.131,24.0217]
[1645188290570,15.9371,94.21,94.132,24.8211]
[1645188291173,24.9055,94.209,94.132,24.8211]
[1645188291371,5.309,94.208,94.133,52.36566558]
[1645188291669,5.309,94.208,94.192,0.83584385]
[1645188292669,5.309,94.208,94.193,43.55416207]
[1645188293090,5.307,94.209,94.193,43.55416207]
[1645188293794,5.307,94.209,94.192,0.83584385]
[1645188293991,22.6516,94.208,94.192,0.83584385]
[1645188294192,5.307,94.207,94.192,0.83584385]
[1645188295195,5.307,94.209,94.192,0.83584385]
[1645188296797,24.388,94.208,94.176,0.73136327]
[1645188297097,15.9401,94.2,94.176,0.73136327]
[1645188297295,5.308,94.199,94.176,0.73136327]
[1645188297696,111.108,94.207,94.176,0.73136327]
[1645188297996,15.9401,94.19,94.176,0.73136327]
[1645188298195,29.0311,94.189,94.176,0.73136327]
[1645188299297,5.308,94.189,94.176,0.73136327]
[1645188299499,28.1168,94.189,94.176,0.73136327]
[1645188300400,5.308,94.189,94.176,0.73136327]
[1645188300999,15.9401,94.19,94.176,0.73136327]
[1645188301197,15.24,94.2,94.176,0.73136327]
[1645188301399,31.1777,94.2,94.176,0.73136327]
[1645188301600,15.9377,94.2,94.176,0.73136327]
[1645188301898,15.9377,94.2,94.165,49.16781552]
[1645188303099,0.51957329,94.206,94.165,49.16781552]
[1645188306904,0.5186749,94.199,94.165,49.16781552]
[1645188309709,0.5186749,94.199,94.166,22.9697]
[1645188311708,0.51957329,94.206,94.17,15.9319]
[1645188313408,22.6154,94.227,94.171,105.8]
[1645188313608,15.9306,94.24,94.181,105.8]
[1645188313808,6.03664408,94.239,94.183,105.8]
[1645188314209,2.97599779,94.248,94.185,105.8]
[1645188314410,9.01243709,94.248,94.185,105.8]
[1645188314609,6.0364393,94.248,94.185,105.8]
[1645188314813,24.9845,94.249,94.191,105.8]
[1645188315011,2.97599779,94.26,94.191,105.8]
[1645188315209,2.97599779,94.262,94.191,105.8]
[1645188315409,5.306,94.261,94.191,105.8]
[1645188315609,6.03554702,94.26,94.191,105.8]
[1645188315819,6.03554702,94.261,94.191,105.8]
[1645188316412,6.03554702,94.263,94.201,105.8]
[1645188316611,24.9703,94.268,94.203,105.8]
[1645188316612,27.94629779,94.268,94.203,105.8]
[1645188316812,6.0348725,94.267,94.203,105.8]
[1645188317013,2.97599779,94.277,94.203,105.8]
[1645188317212,2.97599779,94.281,94.203,105.8]
[1645188317415,2.97599779,94.282,94.205,105.8]
[1645188317616,2.97599779,94.287,94.205,105.8]
[1645188318012,2.97599779,94.288,94.205,105.8]
[1645188318216,39.98054252,94.288,94.221,42.06876561]
[1645188318413,2.97599779,94.281,94.221,42.06876561]
[1645188318614,5.304,94.28,94.221,42.06876561]
[1645188318816,6.0348725,94.279,94.221,42.06876561]
[1645188319013,5.305,94.278,94.221,42.06876561]
[1645188319413,6.0348725,94.277,94.221,42.06876561]
[1645188319613,5.305,94.276,94.221,42.06876561]
[1645188320113,6.03531437,94.275,94.205,22.5722]
[1645188320315,15.9259,94.27,94.205,22.5722]
[1645188320513,15.9259,94.27,94.202,23.9896]
[1645188320714,5.305,94.269,94.202,23.9896]
[1645188320923,13.97053658,94.269,94.202,23.9896]
[1645188321120,6.03615348,94.268,94.203,45.41826512]
[1645188321314,5.305,94.267,94.203,45.41826512]
[1645188321514,5.305,94.267,94.207,0.79461062]
[1645188321717,5.305,94.268,94.207,0.79461062]
[1645188322316,15.9288,94.26,94.207,0.79461062]
[1645188322516,5.305,94.259,94.207,0.79461062]
[1645188326616,5.305,94.259,94.203,46.21259256]
[1645188326840,15.929,94.25,94.203,46.21259256]
[1645188329621,5.306,94.249,94.203,46.21259256]
[1645188329924,15.929,94.25,94.203,46.21259256]
[1645188330124,5.306,94.249,94.203,46.21259256]
[1645188331624,5.306,94.249,94.203,45.41826512]
[1645188332024,2.97599779,94.267,94.204,108.4293831]
[1645188332227,5.306,94.272,94.204,108.4293831]
[1645188332424,23.1695,94.295,94.204,108.4293831]
[1645188332425,2.97599779,94.286,94.204,108.4293831]
[1645188332628,23.1695,94.295,94.205,130.2765]
[1645188332629,5.305,94.285,94.205,130.2765]
[1645188332826,6.03464837,94.284,94.205,130.2765]
[1645188333026,54.73174178,94.286,94.205,130.2765]
[1645188333027,5.305,94.283,94.205,130.2765]
[1645188333226,6.03464837,94.282,94.205,130.2765]
[1645188333428,15.9238,94.28,94.21,15.9253]
[1645188333626,6.03464837,94.279,94.21,15.9253]
[1645188335047,6.03464837,94.279,94.211,105.8]
[1645188335451,6.03464837,94.279,94.221,105.8]
[1645188336248,6.03464837,94.279,94.223,105.8]
[1645188337250,6.03464837,94.279,94.222,53.06105136]
[1645188338554,15.9256,94.27,94.222,53.06105136]
[1645188338751,11.33964837,94.269,94.222,53.06105136]
[1645188338957,6.03464837,94.268,94.222,53.06105136]
[1645188339154,5.305,94.267,94.222,53.06105136]
[1645188339353,6.03464837,94.266,94.222,53.06105136]
[1645188339554,5.305,94.265,94.222,53.06105136]
[1645188339754,6.03464837,94.264,94.222,53.06105136]
[1645188339955,5.305,94.263,94.222,53.06105136]
[1645188340357,15.9279,94.26,94.222,53.06105136]
[1645188340657,6.03464837,94.259,94.222,53.06105136]
[1645188341558,6.03464837,94.259,94.224,0.792204]
[1645188341756,11.33964837,94.259,94.224,0.792204]
[1645188342156,6.03540917,94.258,94.224,0.792204]
[1645188346565,6.03540917,94.258,94.222,53.85297229]
[1645188349065,5.305,94.257,94.222,53.85297229]
[1645188349565,2.97599779,94.255,94.222,53.85297229]
[1645188349764,9.01140696,94.256,94.222,53.85297229]
[1645188349964,2.97599779,94.255,94.222,53.85297229]
[1645188350167,8.28099779,94.257,94.222,53.85297229]
[1645188350365,6.03540917,94.256,94.222,53.85297229]
[1645188351573,6.03540917,94.256,94.224,0.792204]
[1645188354279,2.97599779,94.255,94.224,0.792204]
[1645188354476,5.305,94.254,94.224,0.792204]
[1645188354777,9.01140696,94.253,94.224,0.792204]
[1645188354976,8.28099779,94.252,94.224,0.792204]
[1645188355380,6.03540917,94.251,94.224,0.792204]
[1645188355578,5.305,94.25,94.224,0.792204]
[1645188356079,6.03540917,94.249,94.224,0.792204]
[1645188356279,5.305,94.248,94.224,0.792204]
[1645188356481,6.03540917,94.247,94.224,0.792204]
[1645188356783,6.03540917,94.247,94.215,0.79192093]
[1645188356978,5.306,94.246,94.215,0.79192093]
[1645188357182,6.03540917,94.245,94.215,0.79192093]
[1645188357385,5.306,94.244,94.215,0.79192093]
[1645188357584,6.03540917,94.243,94.215,0.79192093]
[1645188357783,5.306,94.242,94.215,0.79192093]
[1645188357983,6.03540917,94.241,94.215,0.79192093]
[1645188358191,5.306,94.24,94.215,0.79192093]
[1645188358492,6.03540917,94.239,94.215,0.79192093]
[1645188358689,21.2367,94.24,94.215,0.79192093]
[1645188358888,36.4767,94.24,94.215,0.79192093]
[1645188361612,36.4767,94.24,94.21,42.66512597]
[1645188363011,36.4767,94.24,94.181,24.9868]
[1645188363213,6.0369362,94.239,94.181,24.9868]
[1645188363411,15.9341,94.23,94.181,24.9868]
[1645188363613,31.1741,94.23,94.181,24.9868]
[1645188364012,31.1741,94.23,94.182,44.66095593]
[1645188365017,1.50587415,94.213,94.182,44.66095593]
[1645188365615,1.50587415,94.213,94.181,24.9868]
[1645188365813,1.50587415,94.205,94.15,15.9354]
[1645188366013,5.307,94.236,94.15,15.9354]
[1645188366014,1.50587415,94.204,94.151,23.6925]
[1645188366217,1.50587415,94.199,94.151,23.6925]
[1645188366614,1.50587415,94.199,94.152,45.28638669]
[1645188366814,1.50587415,94.196,94.152,45.28638669]
[1645188367113,1.50587415,94.187,94.152,45.28638669]
[1645188367313,1.50587415,94.19,94.152,45.28638669]
[1645188367513,5.309,94.189,94.152,45.28638669]
[1645188368316,6.81487415,94.189,94.152,45.28638669]
[1645188368515,5.309,94.189,94.152,45.28638669]
[1645188369316,6.81487415,94.189,94.152,45.28638669]
[1645188369615,5.309,94.189,94.152,45.28638669]
[1645188370620,5.309,94.189,94.138,23.4717]
[1645188370818,15.9407,94.18,94.138,23.4717]
[1645188371420,15.9407,94.18,94.128,23.3165]
[1645188371618,15.9407,94.18,94.155,49.88209593]
[1645188372026,15.9407,94.18,94.154,0.80212063]
[1645188372027,105.8,94.179,94.154,0.80212063]
[1645188372221,15.9443,94.17,94.154,0.80212063]
[1645188372423,105.8,94.169,94.093,24.0289]
[1645188372624,105.8,94.167,94.093,24.0289]
[1645188372822,5.311,94.166,94.093,24.0289]
[1645188373027,5.311,94.168,94.102,53.07183715]
[1645188373522,15.9467,94.15,94.102,53.07183715]
[1645188373725,5.312,94.149,94.102,53.07183715]
[1645188374122,5.312,94.169,94.102,53.07183715]
[1645188375125,15.9446,94.16,94.102,53.07183715]
[1645188375322,5.311,94.159,94.102,53.07183715]
[1645188376824,5.311,94.159,94.103,0.80935383]
[1645188377228,15.9461,94.15,94.103,0.80935383]
[1645188377529,5.312,94.149,94.103,0.80935383]
[1645188381428,15.9461,94.15,94.102,53.7806421]
[1645188382631,5.312,94.149,94.102,53.7806421]
[1645188382831,15.9479,94.14,94.102,53.7806421]
[1645188386860,15.9479,94.14,94.104,0.70894685]
[1645188387641,128.6923,94.139,94.104,0.70894685]
[1645188387841,31.1921,94.13,94.104,0.70894685]
[1645188388542,105.8,94.127,94.07,44.28610843]
[1645188388742,105.8,94.125,94.057,24.926]
[1645188388942,15.24,94.12,94.057,24.926]
[1645188389140,28.2348,94.119,94.057,24.926]
[1645188389746,28.2348,94.119,94.058,53.95543456]
[1645188390349,15.9547,94.11,94.058,53.95543456]
[1645188390547,5.314,94.109,94.058,53.95543456]
[1645188390751,5.314,94.118,94.058,53.95543456]
[1645188391156,105.8,94.117,94.058,53.95543456]
[1645188391352,105.8,94.115,94.058,53.95543456]
[1645188391752,5.314,94.116,94.058,53.95543456]
[1645188391953,5.314,94.117,94.058,53.95543456]
[1645188392352,15.9548,94.1,94.058,53.95543456]
[1645188392552,5.314,94.099,94.058,53.95543456]
[1645188394263,5.314,94.118,94.058,53.95543456]
[1645188394469,22.9208,94.119,94.058,53.95543456]
[1645188394667,5.314,94.118,94.058,53.95543456]
[1645188395069,5.314,94.118,94.058,56.58481766]
[1645188395268,5.314,94.128,94.059,105.8]
[1645188395472,23.95077777,94.129,94.061,105.8]
[1645188395473,0.54817777,94.129,94.061,105.8]
[1645188396272,0.54817777,94.129,94.063,105.8]
[1645188396471,0.54817777,94.129,94.071,105.8]
[1645188397070,0.54817777,94.129,94.075,105.8]
[1645188397273,0.71859323,94.151,94.075,112.04]
[1645188397473,5.312,94.15,94.08,15.9451]
[1645188399375,21.2586,94.15,94.08,15.9451]
[1645188399681,1.50587415,94.149,94.08,15.9451]
[1645188399877,28.6974,94.148,94.08,15.9451]
[1645188400073,1.50587415,94.144,94.08,15.9451]
[1645188400276,5.312,94.143,94.08,15.9451]
[1645188400478,1.50587415,94.14,94.08,15.9451]
[1645188400679,5.312,94.139,94.074,47.63650759]
[1645188400878,6.81787415,94.139,94.074,47.63650759]
[1645188401077,1.50587415,94.133,94.074,47.63650759]
[1645188401376,5.313,94.132,94.074,47.63650759]
[1645188401780,15.9509,94.13,94.074,47.63650759]
[1645188401976,5.313,94.129,94.074,47.63650759]
[1645188402677,6.81887415,94.129,94.074,47.63650759]
[1645188403082,15.9521,94.12,94.074,47.63650759]
[1645188403282,5.313,94.119,94.074,47.63650759]
[1645188403684,5.313,94.122,94.074,47.63650759]
[1645188403884,1.50587415,94.12,94.074,47.63650759]
[1645188404083,15.9538,94.11,94.074,47.63650759]
[1645188404285,5.313,94.109,94.074,47.63650759]
[1645188404584,5.313,94.123,94.074,47.63650759]
[1645188404983,1.50587415,94.126,94.074,53.96650759]
[1645188405285,1.50587415,94.131,94.074,53.96650759]
[1645188405583,1.50587415,94.136,94.074,53.96650759]
[1645188405783,1.50587415,94.138,94.074,159.76650759]
[1645188405984,1.50587415,94.138,94.074,53.96650759]
[1645188406183,1.50587415,94.14,94.074,53.96650759]
[1645188406385,1.50587415,94.137,94.074,53.96650759]
[1645188406582,5.313,94.136,94.08,15.9474]
[1645188406782,1.50587415,94.135,94.08,15.9474]
[1645188406986,5.313,94.134,94.08,15.9474]
[1645188407284,6.81887415,94.134,94.08,15.9474]
[1645188407481,1.50587415,94.134,94.08,15.9474]
[1645188407682,1.50587415,94.136,94.08,15.9474]
[1645188407883,5.313,94.135,94.08,15.9474]
[1645188408288,5.313,94.137,94.08,15.9474]
[1645188408690,1.50587415,94.136,94.08,15.9474]
[1645188408991,5.313,94.135,94.08,15.9474]
[1645188409188,5.313,94.136,94.08,15.9474]
[1645188409389,6.81887415,94.136,94.08,15.9474]
[1645188409790,1.50587415,94.135,94.08,15.9474]
[1645188410091,15.9483,94.14,94.08,15.9474]
[1645188410092,1.50587415,94.137,94.08,15.9474]
[1645188411090,1.50587415,94.138,94.08,15.9474]
[1645188411695,5.313,94.139,94.08,23.0274]
[1645188411891,1.50587415,94.141,94.08,23.0274]
[1645188412293,1.50587415,94.14,94.08,23.0274]
[1645188412494,1.50587415,94.138,94.08,23.0274]
[1645188413499,1.50587415,94.137,94.08,23.0274]
[1645188413797,1.50587415,94.137,94.08,15.9474]
[1645188415599,5.313,94.139,94.08,15.9474]
[1645188420503,5.313,94.139,94.075,23.4426]
[1645188420504,15.95,94.13,94.075,23.4426]
[1645188420703,31.19,94.13,94.075,23.4426]
[1645188420903,5.313,94.129,94.075,23.4426]
[1645188421710,15.9521,94.12,94.075,23.4426]
[1645188421910,5.313,94.119,94.075,23.4426]
[1645188425420,15.9521,94.12,94.075,23.4426]
[1645188425622,5.313,94.119,94.075,23.4426]
[1645188427221,0.63250785,94.118,94.075,23.4426]
[1645188427420,5.313,94.117,94.075,23.4426]
[1645188428128,5.313,94.117,94.074,47.63650759]
[1645188428330,15.9537,94.11,94.074,47.63650759]
[1645188428530,5.313,94.109,94.074,47.63650759]
[1645188430832,15.9537,94.11,94.074,47.63650759]
[1645188432034,5.313,94.109,94.074,47.63650759]
[1645188437352,15.9537,94.11,94.074,47.63650759]
[1645188438853,5.313,94.109,94.074,47.63650759]
[1645188440055,5.313,94.119,94.074,47.63650759]
[1645188440255,5.313,94.134,94.074,47.63650759]
[1645188440458,5.313,94.135,94.075,24.0466]
[1645188442359,15.9499,94.13,94.075,24.0466]
[1645188443858,5.313,94.129,94.075,24.0466]
[1645188444261,15.9515,94.12,94.075,24.0466]
[1645188444457,5.313,94.119,94.075,24.0466]
[1645188446363,5.313,94.119,94.074,47.63650759]
[1645188446988,15.9532,94.11,94.074,47.63650759]
[1645188447188,5.313,94.109,94.057,40.7981]
[1645188447395,5.313,94.109,94.057,24.9863]
[1645188448190,5.313,94.109,94.058,54.3987118]
[1645188448789,15.9548,94.1,94.058,54.3987118]
[1645188448987,5.314,94.099,94.058,54.3987118]
[1645188451296,15.9566,94.09,94.058,54.3987118]
[1645188451693,15.9566,94.09,94.044,0.4307684]
[1645188451895,30.1939,94.089,94.044,0.4307684]
[1645188453298,15.9582,94.08,94.044,0.4307684]
[1645188453495,5.315,94.079,94.044,0.4307684]
[1645188456800,15.9582,94.08,94.044,0.4307684]
[1645188458201,5.315,94.079,94.044,0.4307684]
[1645188459407,5.315,94.087,94.044,0.4307684]
[1645188459807,0.62864946,94.088,94.044,0.4307684]
[1645188460407,0.62864946,94.088,94.045,2.6293831]
[1645188460606,0.62864946,94.088,94.046,39.30086151]
[1645188461210,0.62864946,94.088,94.047,24.8001]
[1645188462215,29.7327,94.109,94.047,24.8001]
[1645188463716,15.9547,94.1,94.047,24.8001]
[1645188464017,5.314,94.099,94.047,24.8001]
[1645188464224,5.315,94.108,94.047,24.8001]
[1645188464618,2.6293831,94.098,94.047,24.8001]
[1645188464918,5.315,94.097,94.047,24.8001]
[1645188465118,105.8,94.096,94.044,0.4307684]
[1645188465317,121.7567,94.09,94.044,0.4307684]
[1645188465518,5.315,94.089,94.044,0.4307684]
[1645188465944,27.1746831,94.088,94.044,0.4307684]